bitfinex-derivatives/quotes_SOLF0:USTF0_20250113
["timestamp","ask_amount","ask_price","bid_price","bid_amount"]
[1736744724503,14.05956474,185.15,185.1,2.7027]
[1736744725508,2.702,185.15,185.1,2.7027]
[1736744726907,2.702,185.15,185.05,4.9314]
[1736744726908,11.20634727,185.16,185.12,2.7024]
[1736744727609,2.7015,185.19,185.13,2.7021]
[1736744728001,2.7015,185.19,185.1,11.35756474]
[1736744728308,2.7015,185.19,185.14,2.702]
[1736744728510,17.25756474,185.21,185.07,11.35756474]
[1736744728803,11.35756474,185.18,185.07,11.35756474]
[1736744729006,2.7026,185.11,185.05,4.9314]
[1736744729406,11.35756474,185.15,185.05,4.9314]
[1736744729605,2.7028,185.09,185.05,4.9314]
[1736744730806,11.35756474,185.12,185.05,3.3011]
[1736744731002,2.703,185.08,185.05,3.3011]
[1736744731207,11.35756474,185.12,185.05,3.3011]
[1736744731408,2.703,185.09,185.05,3.3011]
[1736744731910,2.7031,185.07,185.02,2.7038]
[1736744732107,11.35756474,185.12,184.98,11.35756474]
[1736744732310,11.35756474,185.09,184.98,11.35756474]
[1736744733212,11.35756474,185.09,185.0,2.7041]
[1736744733413,11.35756474,185.09,184.98,11.35756474]
[1736744733608,11.35756474,185.12,184.98,11.35756474]
[1736744733816,2.703,185.09,185.04,2.7036]
[1736744734009,2.703,185.09,184.98,11.35756474]
[1736744734713,11.35756474,185.12,184.98,11.35756474]
[1736744734909,11.35756474,185.09,184.98,11.35756474]
[1736744735213,2.7039,185.02,184.97,3.3345]
[1736744735514,2.7039,185.02,184.97,6.039]
[1736744736509,2.7037,185.04,184.98,2.7044]
[1736744736809,2.7037,185.04,184.97,3.3345]
[1736744737413,5.92,185.06,184.97,3.3345]
[1736744737914,2.7034,185.05,185.0,2.704]
[1736744738105,5.92,185.06,184.97,3.3345]
[1736744738309,5.92,185.06,184.98,11.35756474]
[1736744738714,2.7033,185.06,185.01,2.7039]
[1736744739405,2.7033,185.06,184.98,11.35756474]
[1736744739406,2.703,185.08,185.03,2.7037]
[1736744739917,8.6228,185.1,185.04,2.7035]
[1736744740113,5.92,185.1,185.04,2.7035]
[1736744740314,17.27756474,185.1,184.98,11.35756474]
[1736744740514,2.7031,185.07,185.01,2.7039]
[1736744740711,2.7031,185.07,184.98,11.35756474]
[1736744742217,2.7031,185.07,185.02,2.7038]
[1736744742414,2.7029,185.09,185.01,11.35756474]
[1736744742714,5.92,185.1,185.05,2.7033]
[1736744743314,5.92,185.1,185.01,11.35756474]
[1736744743515,5.92,185.1,185.06,2.7032]
[1736744743714,2.7025,185.11,185.06,2.7032]
[1736744744109,17.27756474,185.13,184.97,3.3345]
[1736744744313,17.27756474,185.13,185.0,11.35756474]
[1736744744713,17.27756474,185.13,185.02,2.7038]
[1736744746321,2.7031,185.08,185.02,2.7038]
[1736744746923,2.7032,185.07,185.02,2.7038]
[1736744749326,11.35756474,185.1,185.0,11.35756474]
[1736744749526,2.703,185.09,185.0,11.35756474]
[1736744749825,11.35756474,185.1,185.0,11.35756474]
[1736744750228,17.27756474,185.13,185.0,11.35756474]
[1736744750422,11.35756474,185.13,185.0,11.35756474]
[1736744750627,2.7029,185.09,185.04,2.7034]
[1736744751827,11.35756474,185.1,184.97,78.70956695]
[1736744752026,11.35756474,185.1,184.97,90.06713169]
[1736744753227,2.7034,185.06,185.02,2.7038]
[1736744753430,11.35756474,185.1,185.0,11.35756474]
[1736744754029,2.7032,185.07,185.0,11.35756474]
[1736744755130,2.7032,185.07,185.02,2.7038]
[1736744756935,11.35756474,185.1,185.0,11.35756474]
[1736744757133,2.703,185.08,185.0,11.35756474]
[1736744757336,7.27197584,185.09,185.03,7.27197584]
[1736744757533,7.27197584,185.09,185.05,2.7033]
[1736744758534,7.27197584,185.09,185.04,3.2537]
[1736744758935,2.7034,185.05,185.0,7.27197584]
[1736744759135,2.7034,185.05,185.01,2.704]
[1736744761040,2.7036,185.04,184.98,3.2496]
[1736744761238,2.7036,185.04,185.0,7.27197584]
[1736744761637,2.7034,185.05,185.0,9.97597584]
[1736744762038,5.88,185.13,184.98,3.2496]
[1736744762039,7.27197584,185.03,184.98,3.2496]
[1736744762241,2.7042,185.0,184.98,3.2496]
[1736744762536,5.88,185.04,184.98,3.2496]
[1736744762737,9.97607584,185.01,184.98,3.2496]
[1736744762944,5.88,185.04,184.91,7.52374126]
[1736744762945,7.27197584,184.99,184.91,7.52374126]
[1736744763137,7.27197584,184.95,184.91,7.52374126]
[1736744763844,7.27197584,184.95,184.89,8.83527584]
[1736744764257,7.27197584,184.93,184.89,1.5633]
[1736744764837,2.7053,184.92,184.87,3.1254]
[1736744765137,2.7053,184.92,184.85,71.39218468]
[1736744765138,7.27197584,184.91,184.85,1.5633]
[1736744765341,11.38823886,184.91,184.82,2.7067]
[1736744765542,11.38823886,184.91,184.81,9.07154126]
[1736744766242,11.38823886,184.88,184.81,1.5478]
[1736744766443,11.38823886,184.88,184.81,4.2547]
[1736744766647,2.7059,184.89,184.81,1.5478]
[1736744767053,11.38823886,184.91,184.83,2.7066]
[1736744767054,2.7056,184.9,184.83,2.7066]
[1736744767247,11.38823886,184.91,184.81,1.5478]
[1736744768343,11.38823886,184.88,184.81,1.5478]
[1736744768848,2.7062,184.86,184.77,11.38823886]
[1736744769337,14.09423886,184.88,184.77,11.38823886]
[1736744769537,2.706,184.88,184.77,11.38823886]
[1736744769736,142.79744571,184.91,184.8,11.38823886]
[1736744769938,142.79744571,184.91,184.81,3.2147]
[1736744770143,2.7058,184.89,184.83,2.7066]
[1736744770948,131.40920685,184.91,184.83,11.38823886]
[1736744771447,131.40920685,184.91,184.82,1.6711]
[1736744771448,6.14,184.94,184.86,11.38823886]
[1736744772148,6.14,184.94,184.87,2.7059]
[1736744772448,17.52823886,184.94,184.82,13.05933886]
[1736744772839,11.38823886,184.91,184.82,1.6711]
[1736744773545,2.7061,184.87,184.82,4.3779]
[1736744773745,2.7061,184.87,184.82,1.6711]
[1736744774350,2.7061,184.87,184.82,4.3779]
[1736744774550,2.7059,184.89,184.82,1.6711]
[1736744774947,11.38823886,184.91,184.82,1.6711]
[1736744775148,11.38823886,184.94,184.82,13.05933886]
[1736744775349,6.12,184.95,184.85,11.38823886]
[1736744775548,6.12,184.95,184.89,2.7057]
[1736744775746,8.8249,184.95,184.89,2.7057]
[1736744775944,17.35678038,184.98,184.88,11.38823886]
[1736744776144,20.06138038,184.98,184.89,1.6921]
[1736744776350,20.06138038,184.98,184.89,3.2663]
[1736744776549,17.35678038,184.98,184.89,3.2663]
[1736744776744,2.7048,184.96,184.89,3.2663]
[1736744776944,17.35678038,184.98,184.89,3.2663]
[1736744777455,17.35678038,184.98,184.92,2.7053]
[1736744777456,2.7047,184.97,184.92,2.7053]
[1736744777658,11.21678038,184.98,184.9,1.5982]
[1736744777853,6.14,185.01,184.9,1.5982]
[1736744778150,6.16,185.03,184.9,19.79916146]
[1736744778552,2.7043,184.99,184.94,2.7049]
[1736744778749,6.16,185.03,184.9,19.79916146]
[1736744778949,24.36096146,185.03,184.9,1.5982]
[1736744779657,2.7048,184.96,184.9,4.3038]
[1736744780257,24.36096146,185.03,184.9,1.5982]
[1736744780453,2.7048,184.96,184.9,1.5982]
[1736744780854,2.705,184.94,184.9,1.5982]
[1736744781159,18.20096146,185.0,184.89,3.2663]
[1736744783453,6.12,185.02,184.89,3.2663]
[1736744783657,6.12,185.02,184.89,21.46726146]
[1736744783862,2.704,185.01,184.89,21.46726146]
[1736744784552,18.20096146,185.04,184.89,21.46726146]
[1736744784958,2.704,185.01,184.89,21.46726146]
[1736744785154,18.20096146,185.04,184.89,21.46726146]
[1736744785659,18.20096146,185.04,184.92,2.7052]
[1736744785860,18.20096146,185.04,184.89,3.2663]
[1736744786063,2.705,184.95,184.9,2.7056]
[1736744786761,2.705,184.95,184.89,3.2663]
[1736744786960,2.7052,184.93,184.89,3.2663]
[1736744787162,18.20096146,185.01,184.89,3.2663]
[1736744787561,2.7049,184.95,184.89,5.972]
[1736744788164,2.7051,184.94,184.89,5.972]
[1736744788366,18.20096146,185.01,184.89,3.2663]
[1736744788557,18.20096146,185.01,184.91,2.7054]
[1736744789062,2.7044,184.98,184.91,2.7054]
[1736744789258,18.20096146,185.01,184.91,2.7054]
[1736744789463,18.20096146,185.01,184.92,2.7052]
[1736744789664,2.7046,184.98,184.92,2.7052]
[1736744789962,6.1,185.0,184.92,2.7052]
[1736744791163,6.1,185.0,184.89,3.2663]
[1736744791458,18.20096146,184.98,184.89,1.5742]
[1736744791664,2.7057,184.9,184.84,1.6266]
[1736744792459,2.7058,184.89,184.84,1.6266]
[1736744792861,6.1,184.92,184.85,2.7063]
[1736744793457,6.1,184.92,184.83,2.7065]
[1736744794462,6.1,184.92,184.85,2.7063]
[1736744795061,6.1,184.92,184.87,2.706]
[1736744795367,6.1,184.92,184.81,1.6656]
[1736744795859,6.1,184.92,184.84,2.7064]
[1736744796066,6.1,184.92,184.81,1.6656]
[1736744797061,2.7059,184.88,184.83,2.7065]
[1736744797262,6.1,184.92,184.81,1.6656]
[1736744797757,2.7059,184.89,184.84,2.7064]
[1736744798264,24.30096146,184.92,184.82,2.7067]
[1736744798462,18.20096146,184.89,184.79,1.5599]
[1736744799468,2.7068,184.83,184.78,2.7072]
[1736744799673,18.20096146,184.89,184.78,2.7072]
[1736744800065,2.7066,184.84,184.78,2.7072]
[1736744800563,2.7067,184.83,184.78,2.7072]
[1736744800764,18.20096146,184.86,184.76,2.7076]
[1736744800964,18.20096146,184.86,184.75,1.6219]
[1736744801268,18.20096146,184.86,184.75,4.3296]
[1736744801658,2.7067,184.83,184.75,4.3296]
[1736744801858,6.08,184.84,184.75,4.3296]
[1736744802870,2.7069,184.82,184.77,2.7074]
[1736744803363,6.08,184.84,184.75,1.6219]
[1736744804369,2.7067,184.83,184.75,1.6219]
[1736744804968,2.7067,184.83,184.78,2.7074]
[1736744805171,2.7069,184.82,184.75,1.6219]
[1736744805368,11.39687025,184.83,184.75,1.6219]
[1736744806573,2.7069,184.81,184.75,1.6219]
[1736744807362,2.7068,184.82,184.77,2.7074]
[1736744808368,2.707,184.81,184.75,4.3296]
[1736744809363,2.707,184.81,184.76,2.7076]
[1736744810772,11.39687025,184.83,184.75,4.3297]
[1736744811071,11.39687025,184.83,184.75,1.6219]
[1736744811773,11.39687025,184.83,184.73,1.6149]
[1736744811967,2.7072,184.8,184.75,2.7078]
[1736744812163,11.39687025,184.83,184.73,1.6149]
[1736744812563,11.39687025,184.83,184.74,2.7079]
[1736744813268,11.39687025,184.8,184.71,2.7084]
[1736744813472,11.39687025,184.77,184.69,1.5815]
[1736744813666,11.39687025,184.74,184.67,7.49008265]
[1736744813972,11.39687025,184.74,184.65,7.49008265]
[1736744814376,2.7086,184.7,184.65,7.49008265]
[1736744814579,11.39687025,184.74,184.65,7.49008265]
[1736744815076,2.7088,184.69,184.63,1.6844]
[1736744815278,11.39687025,184.74,184.63,1.6844]
[1736744815674,6.04,184.76,184.66,11.39687025]
[1736744816076,6.04,184.76,184.63,13.08127025]
[1736744816274,11.39687025,184.74,184.63,13.08127025]
[1736744816779,2.7085,184.71,184.65,2.7091]
[1736744817267,2.7082,184.73,184.66,2.7091]
[1736744817471,11.39687025,184.77,184.63,13.08127025]
[1736744817977,2.7085,184.71,184.65,2.7091]
[1736744818175,11.39687025,184.77,184.63,13.08127025]
[1736744818571,11.39687025,184.74,184.63,13.08127025]
[1736744819775,11.39687025,184.74,184.63,1.6844]
[1736744820076,2.7089,184.68,184.63,4.3939]
[1736744821073,2.7089,184.68,184.63,2.7095]
[1736744821377,11.39687025,184.71,184.59,11.39687025]
[1736744821583,6.02,184.7,184.59,11.39687025]
[1736744821774,2.7093,184.65,184.59,14.10687025]
[1736744821979,2.7093,184.65,184.59,11.39687025]
[1736744822378,2.7091,184.67,184.59,11.39687025]
[1736744822777,6.02,184.7,184.59,11.39687025]
[1736744823582,17.41687025,184.74,184.59,11.39687025]
[1736744823778,6.02,184.74,184.63,11.39687025]
[1736744823984,6.02,184.74,184.64,4.6851]
[1736744824178,8.728,184.74,184.67,2.709]
[1736744824387,11.39687025,184.77,184.66,11.39687025]
[1736744824976,6.02,184.79,184.66,11.39687025]
[1736744825280,0.21277,184.8,184.72,11.39687025]
[1736744825481,0.21277,184.8,184.73,3.1179]
[1736744827484,0.21277,184.8,184.75,2.7077]
[1736744828086,0.21277,184.8,184.77,2.7074]
[1736744828683,0.21277,184.8,184.73,4.7862]
[1736744829076,0.21277,184.8,184.75,11.39687025]
[1736744829277,0.21277,184.8,184.78,2.7073]
[1736744829477,0.21277,184.8,184.75,11.39687025]
[1736744829878,2.7065,184.84,184.75,11.39687025]
[1736744830083,2.7061,184.87,184.78,11.39687025]
[1736744830286,17.41687025,184.9,184.78,11.39687025]
[1736744830687,2.7062,184.86,184.8,2.7071]
[1736744830881,17.41687025,184.9,184.8,2.7071]
[1736744831783,11.39687025,184.87,184.75,11.39687025]
[1736744831984,2.7068,184.82,184.75,11.39687025]
[1736744832187,11.39687025,184.87,184.75,11.39687025]
[1736744832381,11.39687025,184.87,184.78,2.7073]
[1736744832581,11.39687025,184.87,184.75,11.39687025]
[1736744832789,11.39687025,184.87,184.76,2.7075]
[1736744832989,11.39687025,184.84,184.73,4.7862]
[1736744834284,14.10347025,184.84,184.78,2.7074]
[1736744834485,11.39687025,184.87,184.75,11.39687025]
[1736744835192,11.39687025,184.87,184.73,16.18307025]
[1736744835491,11.39687025,184.84,184.73,16.18307025]
[1736744835985,2.7071,184.8,184.75,2.7078]
[1736744837189,2.7071,184.8,184.73,18.89107025]
[1736744837386,2.7071,184.8,184.73,16.18307025]
[1736744838295,2.7071,184.8,184.74,2.7078]
[1736744838589,2.7072,184.79,184.74,2.7078]
[1736744838990,11.39687025,184.84,184.73,4.7862]
[1736744839584,11.39687025,184.84,184.74,2.7079]
[1736744839786,11.39687025,184.84,184.73,4.7862]
[1736744840190,2.7075,184.78,184.73,4.7862]
[1736744840389,11.39687025,184.84,184.74,2.7078]
[1736744840688,2.7072,184.8,184.74,2.7078]
[1736744841092,11.39687025,184.81,184.73,3.1179]
[1736744841293,2.7076,184.77,184.73,3.1179]
[1736744841996,2.7077,184.76,184.71,2.7084]
[1736744842794,2.7075,184.77,184.68,11.39687025]
[1736744843098,11.39687025,184.81,184.73,2.7081]
[1736744843491,2.7074,184.78,184.73,2.7081]
[1736744843697,11.39687025,184.81,184.68,11.39687025]
[1736744843891,11.39687025,184.81,184.71,11.39687025]
[1736744844090,2.7072,184.79,184.71,11.39687025]
[1736744844289,6.02,184.82,184.71,11.39687025]
[1736744844494,11.39687025,184.84,184.71,11.39687025]
[1736744844788,2.7069,184.81,184.74,2.7078]
[1736744844995,2.7069,184.81,184.71,11.39687025]
[1736744845191,0.3607,184.89,184.74,11.39687025]
[1736744845393,11.39687025,184.9,184.8,11.39687025]
[1736744845696,11.39687025,184.93,184.83,11.39687025]
[1736744845897,2.7054,184.92,184.86,2.7062]
[1736744846391,134.12443911,184.91,184.86,2.7062]
[1736744846697,17.41687025,184.96,184.87,2.706]
[1736744846899,17.41687025,184.96,184.86,11.39687025]
[1736744847289,11.39687025,184.96,184.86,11.39687025]
[1736744847495,11.21783945,184.98,184.89,11.39687025]
[1736744847797,11.21783945,184.98,184.93,2.705]
[1736744847988,2.7046,184.97,184.89,11.39687025]
[1736744848388,2.7046,184.97,184.9,2.7055]
[1736744848593,11.21783945,184.98,184.89,11.39687025]
[1736744848995,11.21783945,184.98,184.9,2.7055]
[1736744849196,2.7048,184.96,184.89,11.39687025]
[1736744849400,2.7048,184.96,184.86,18.20282439]
[1736744849589,2.7048,184.96,184.89,2.7057]
[1736744850298,11.21783945,184.98,184.86,18.20282439]
[1736744850497,13.92233945,184.98,184.91,2.7054]
[1736744851498,2.7048,184.96,184.9,2.7056]
[1736744851699,2.7048,184.96,184.86,18.20282439]
[1736744852290,13.92233945,184.98,184.86,18.20282439]
[1736744852594,13.92233945,184.98,184.92,2.7053]
[1736744852791,11.21783945,184.98,184.89,18.20282439]
[1736744852995,6.02,185.04,184.89,18.20282439]
[1736744853301,98.94,185.06,184.92,18.20282439]
[1736744853503,18.20282439,185.08,184.93,1.6989]
[1736744853696,6.02,185.08,184.95,18.20282439]
[1736744853898,6.02,185.11,184.96,1.6828]
[1736744854298,2.7029,185.09,184.96,1.6828]
[1736744854596,24.22282439,185.13,184.98,18.20282439]
[1736744854801,18.20282439,185.16,185.01,18.20282439]
[1736744855103,24.22282439,185.18,185.04,18.20282439]
[1736744855403,92.88,185.19,185.05,3.2886]
[1736744855704,6.02,185.19,185.07,18.20282439]
[1736744855905,6.02,185.19,185.08,1.6828]
[1736744856202,2.7017,185.17,185.08,1.6828]
[1736744857102,2.7017,185.17,185.1,2.7026]
[1736744857300,2.7018,185.16,185.08,1.6828]
[1736744857503,6.02,185.19,185.08,1.6828]
[1736744857703,6.02,185.19,185.11,2.7025]
[1736744858003,18.20282439,185.24,185.08,1.6828]
[1736744858202,6.0,185.23,185.1,18.20282439]
[1736744858503,24.20282439,185.24,185.14,2.7021]
[1736744858704,24.20282439,185.24,185.1,18.20282439]
[1736744858900,2.7011,185.22,185.13,2.7022]
[1736744859205,2.7011,185.22,185.1,18.20282439]
[1736744860105,2.7011,185.22,185.15,2.7019]
[1736744860406,18.20282439,185.24,185.1,18.20282439]
[1736744860600,18.20282439,185.24,185.14,2.702]
[1736744860904,18.20282439,185.24,185.1,18.20282439]
[1736744861103,0.1196,185.29,185.13,18.20282439]
[1736744861104,24.22282439,185.27,185.13,18.20282439]
[1736744861301,24.22282439,185.27,185.14,1.6473]
[1736744861901,18.20282439,185.3,185.14,1.6473]
[1736744862105,6.02,185.29,185.16,18.20282439]
[1736744862400,6.02,185.29,185.22,2.7009]
[1736744862606,6.02,185.32,185.19,18.20282439]
[1736744862808,24.22282439,185.33,185.2,1.6077]
[1736744863004,6.02,185.33,185.2,1.6077]
[1736744863303,18.20282439,185.36,185.22,18.20282439]
[1736744863601,2.6998,185.3,185.24,2.7005]
[1736744863809,24.22282439,185.36,185.23,1.641]
[1736744864808,2.6995,185.32,185.26,2.7003]
[1736744865102,24.22282439,185.36,185.23,1.641]
[1736744865309,2.6996,185.32,185.24,2.7006]
[1736744865604,2.6996,185.32,185.23,1.641]
[1736744866108,2.6996,185.31,185.24,2.7005]
[1736744866407,24.22282439,185.36,185.23,1.641]
[1736744866607,2.7001,185.28,185.21,2.701]
[1736744866809,2.7001,185.28,185.2,1.6077]
[1736744867504,18.20282439,185.33,185.2,4.3088]
[1736744867703,18.20282439,185.3,185.2,1.6077]
[1736744867903,18.20282439,185.3,185.18,1.689]
[1736744868203,2.7003,185.27,185.18,1.689]
[1736744868409,18.20282439,185.3,185.18,1.689]
[1736744868708,18.20282439,185.27,185.17,4.2531]
[1736744869098,18.20282439,185.27,185.17,1.5514]
[1736744869899,18.20282439,185.27,185.14,1.6704]
[1736744870205,2.7013,185.2,185.14,4.3725]
[1736744871005,2.7013,185.2,185.15,2.7019]
[1736744871307,18.43442439,185.27,185.14,1.6704]
[1736744871707,2.7011,185.21,185.14,4.3724]
[1736744872303,2.7008,185.23,185.17,2.7016]
[1736744872508,2.7008,185.23,185.14,1.6704]
[1736744873010,2.7005,185.25,185.16,18.20282439]
[1736744873407,2.7005,185.25,185.19,2.7014]
[1736744873710,131.16056266,185.28,185.16,18.20282439]
[1736744873908,131.16056266,185.28,185.19,2.7013]
[1736744874206,2.7006,185.25,185.19,2.7013]
[1736744874712,131.16056266,185.28,185.18,2.7015]
[1736744874911,2.7008,185.23,185.14,1.6704]
[1736744875313,2.701,185.22,185.14,1.6704]
[1736744875811,2.701,185.22,185.15,2.7018]
[1736744876211,2.701,185.22,185.14,1.6704]
[1736744877111,2.7014,185.19,185.14,1.6704]
[1736744877309,18.20282439,185.24,185.14,1.6704]
[1736744878015,2.7011,185.21,185.15,2.7018]
[1736744878216,18.20282439,185.24,185.14,1.6704]
[1736744878414,18.20282439,185.24,185.14,4.3725]
[1736744878915,2.7013,185.2,185.14,4.3725]
[1736744879314,2.7013,185.2,185.14,1.6704]
[1736744879512,2.7013,185.2,185.15,2.7019]
[1736744879717,18.20282439,185.24,185.14,1.6704]
[1736744880016,18.20282439,185.24,185.12,10.89301402]
[1736744880418,18.20282439,185.21,185.11,1.5754]
[1736744880618,24.18282439,185.21,185.11,1.5754]
[1736744880808,24.18282439,185.21,185.07,19.80112439]
[1736744881011,2.702,185.15,185.07,19.80112439]
[1736744881216,24.18282439,185.21,185.07,19.80112439]
[1736744881617,5.98,185.21,185.07,19.80112439]
[1736744881811,5.98,185.21,185.08,0.99337998]
[1736744882011,5.98,185.21,185.07,19.80112439]
[1736744882613,24.18282439,185.21,185.07,19.80112439]
[1736744883419,24.18282439,185.21,185.07,1.5983]
[1736744883718,2.7021,185.15,185.09,2.7028]
[1736744883919,18.20282439,185.18,185.07,1.5983]
[1736744884216,18.20282439,185.15,185.04,1.6512]
[1736744886412,2.7026,185.11,185.06,2.7033]
[1736744887518,2.7024,185.12,185.07,2.7031]
[1736744889021,18.20282439,185.15,185.07,2.7031]
[1736744889215,2.7025,185.11,185.05,2.7033]
[1736744889415,18.20282439,185.15,185.04,1.6512]
[1736744890522,2.7026,185.11,185.07,2.7031]
[1736744890721,2.7026,185.11,185.04,1.6512]
[1736744891532,11.35948768,185.11,184.98,33.82973565]
[1736744891734,11.35948768,185.11,185.0,9.13938265]
[1736744892023,2.7033,185.06,185.01,2.704]
[1736744892229,11.35948768,185.08,185.0,9.13938265]
[1736744892829,11.35948768,185.08,185.0,1.6493]
[1736744893433,18.18669204,185.1,184.97,9.07208265]
[1736744894032,18.18669204,185.1,184.98,2.7043]
[1736744894632,18.18669204,185.1,184.97,1.582]
[1736744895834,2.7032,185.07,184.98,2.7043]
[1736744896034,18.18669204,185.1,184.98,2.7043]
[1736744896435,2.7033,185.06,185.01,2.7039]
[1736744896738,5.94,185.11,184.97,19.76869204]
[1736744896940,0.2338,185.12,185.0,18.18669204]
[1736744896941,5.94,185.12,185.0,18.18669204]
[1736744897236,2.7027,185.1,185.0,18.18669204]
[1736744897438,18.18669204,185.16,185.0,18.18669204]
[1736744897636,24.12669204,185.16,185.0,18.18669204]
[1736744897835,24.12669204,185.16,185.03,18.18669204]
[1736744898139,5.94,185.16,185.04,1.6678]
[1736744898342,24.36089204,185.19,185.06,18.18669204]
[1736744898636,18.18669204,185.25,185.14,2.702]
[1736744898835,18.18669204,185.25,185.09,18.18669204]
[1736744898836,5.94,185.24,185.09,18.18669204]
[1736744899237,2.7012,185.21,185.14,2.702]
[1736744899433,5.94,185.24,185.09,18.18669204]
[1736744899842,2.7014,185.19,185.13,2.7022]
[1736744900029,5.94,185.24,185.13,2.7022]
[1736744900229,5.94,185.24,185.09,18.18669204]
[1736744900429,5.94,185.24,185.1,2.7027]
[1736744900634,18.18669204,185.22,185.1,2.7027]
[1736744900830,2.7022,185.13,185.07,2.7031]
[1736744901634,18.18669204,185.19,185.07,2.7031]
[1736744901837,2.7024,185.12,185.07,2.7031]
[1736744902040,18.18669204,185.19,185.08,2.703]
[1736744902438,2.7018,185.16,185.08,2.703]
[1736744902634,18.18669204,185.19,185.08,2.703]
[1736744904039,2.7022,185.13,185.08,2.703]
[1736744904252,18.18669204,185.19,185.07,2.7031]
[1736744904840,2.7024,185.12,185.07,2.7031]
[1736744905038,24.10669204,185.16,185.06,10.88821557]
[1736744905443,24.10669204,185.16,185.04,3.2854]
[1736744905834,2.7028,185.09,185.04,5.9889]
[1736744906739,2.7023,185.13,185.05,2.7034]
[1736744906946,24.10669204,185.16,185.05,2.7034]
[1736744907342,2.7027,185.11,185.04,3.2854]
[1736744907543,2.7027,185.11,185.06,2.7032]
[1736744909046,2.7026,185.11,185.06,2.7032]
[1736744910147,2.7029,185.09,185.04,5.9888]
[1736744910342,24.10669204,185.16,185.04,1.6678]
[1736744910543,2.7035,185.05,185.0,1.6256]
[1736744911142,2.7035,185.05,185.01,2.704]
[1736744911443,18.18669204,185.13,185.0,1.6256]
[1736744911644,2.7029,185.09,185.0,19.81229204]
[1736744911951,0.1157,185.15,185.0,19.81229204]
[1736744912143,2.7023,185.13,185.0,19.81229204]
[1736744912346,2.7023,185.13,185.03,18.18669204]
[1736744912548,18.18669204,185.16,185.03,18.18669204]
[1736744912748,2.7024,185.12,185.03,18.18669204]
[1736744912946,2.7024,185.12,185.07,2.703]
[1736744913147,2.7024,185.12,185.03,18.18669204]
[1736744914649,18.18669204,185.19,185.03,18.18669204]
[1736744914851,24.10669204,185.19,185.03,18.18669204]
[1736744915050,18.18669204,185.16,185.01,5.92]
[1736744915250,2.7033,185.06,185.01,2.7039]
[1736744915442,2.7033,185.06,185.0,1.6256]
[1736744915642,18.18669204,185.13,185.0,1.6256]
[1736744915842,2.7031,185.08,185.03,2.7037]
[1736744917743,11.36249128,185.09,185.01,2.7039]
[1736744917947,11.36249128,185.09,184.98,3.1607]
[1736744920249,11.36249128,185.06,184.98,3.1607]
[1736744920451,2.7038,185.03,184.99,2.7042]
[1736744920754,11.36249128,185.06,184.98,3.1607]
[1736744921257,2.7037,185.04,184.99,2.7043]
[1736744921450,11.36249128,185.06,184.99,2.7043]
[1736744921647,11.36249128,185.06,184.98,3.1607]
[1736744921854,14.06579128,185.06,185.01,2.704]
[1736744922555,11.36249128,185.09,185.01,2.704]
[1736744922754,11.36249128,185.09,184.98,3.1607]
[1736744923657,2.7033,185.06,185.01,2.704]
[1736744923956,11.36249128,185.09,184.98,3.1607]
[1736744925154,11.36249128,185.09,184.99,2.7041]
[1736744925551,2.7033,185.06,185.01,2.704]
[1736744926653,2.7036,185.04,184.99,2.7042]
[1736744927050,11.36249128,185.09,184.98,3.1607]
[1736744927251,2.7034,185.05,185.0,2.7041]
[1736744928054,2.7034,185.05,184.98,3.1607]
[1736744928254,2.7033,185.07,184.98,3.1607]
[1736744928656,2.7033,185.07,185.03,2.7036]
[1736744929256,2.7033,185.07,185.02,2.7038]
[1736744931162,11.36249128,185.09,184.98,3.1607]
[1736744931362,2.703,185.08,185.0,11.36249128]
[1736744931749,2.703,185.08,185.03,2.7036]
[1736744932157,2.7031,185.07,185.03,2.7036]
[1736744934063,0.3525,185.12,185.0,11.36249128]
[1736744934265,17.22249128,185.13,185.0,11.36249128]
[1736744934561,17.22249128,185.13,184.98,3.1607]